fUST/lending_fUST_20250606
["ID","MTS","AMOUNT","RATE_DAILY","PERIOD"]
[364740011,1749223851600,-1802.88,0.00021369,2]
[364740012,1749223851610,-440.0,0.00021369,2]
[364740013,1749223851621,-440.0,0.00021369,2]
[364740014,1749223851631,-562.49,0.00021369,2]
[364740015,1749223851641,-831.48,0.00021369,2]
[364740016,1749223851650,-440.0,0.00021369,2]
[364740017,1749223851661,-440.0,0.00021369,2]
[364740018,1749223851670,-5296.18,0.00021369,2]
[364740019,1749223851680,-2045.12,0.00021369,2]
[364740020,1749223851691,-441.66,0.00021369,2]
[364740021,1749223851702,-440.0,0.00021369,2]
[364740022,1749223851712,-1764.13,0.00021369,2]
[364740023,1749223851723,-1492.68,0.00021369,2]
[364740024,1749223851735,-1126.0,0.00021369,2]
[364740025,1749223851745,-440.0,0.00021369,2]
[364740026,1749223851754,-440.0,0.00021369,2]
[364740027,1749223851764,-440.0,0.00021369,2]
[364740028,1749223851773,-440.0,0.00021369,2]
[364740029,1749223851783,-2306.82,0.00021369,2]
[364740030,1749223851792,-440.0,0.00021369,2]
[364740031,1749223851801,-440.0,0.00021369,2]
[364740032,1749223851898,-440.0,0.00021369,2]
[364740033,1749223851908,-685.82,0.00021369,2]
[364740034,1749223851918,-2874.28,0.00021369,2]
[364740035,1749223851927,-465.99,0.00021369,2]
[364740036,1749223851937,-3776.46,0.00021369,2]
[364740037,1749223851947,-501.4130808,0.00021369,2]
[364740038,1749223851956,-440.0,0.00021369,2]
[364740039,1749223851966,-1767.71,0.00021369,2]
[364740040,1749223851978,-455.73,0.00021369,2]
[364740041,1749223851987,-2864.87,0.00021369,2]
[364740042,1749223851996,-1011.19,0.00021369,2]
[364740043,1749223852005,-2220.42,0.00021369,2]
[364740044,1749223852015,-440.0,0.00021369,2]
[364740045,1749223852024,-151.0,0.000214,4]
[364740046,1749223852034,-191.92440929,0.00021417,2]
[364740047,1749223852044,-4642.42901656,0.00021452,5]
[364740048,1749223852053,-500.0,0.00021467,2]
[364740049,1749223852063,-5000.0,0.00021484,2]
[364740050,1749223852072,-151.0,0.000216,3]
[364740051,1749223852082,-4642.42901656,0.00021624,5]
[364740052,1749223852092,-298821.90048,0.00021642,2]
[364740053,1749223852101,-440.0,0.00021643,2]
[364740054,1749223852111,-370.58584117,0.00021643,2]
[364740055,1749223852121,-440.0,0.00021643,2]
[364740056,1749223852131,-458.47,0.00021643,2]
[364740057,1749223852140,-494.03,0.00021643,2]
[364740058,1749223852149,-485.38,0.00021643,2]
[364740059,1749223852159,-440.0,0.00021643,2]
[364740060,1749223852169,-440.0,0.00021643,2]
[364740061,1749223852179,-440.0,0.00021643,2]
[364740062,1749223852189,-758.37,0.00021643,2]
[364740063,1749223852199,-531.23865273,0.00021643,2]
[364740064,1749223852208,-747.21,0.00021643,2]
[364740065,1749223852218,-440.0,0.00021643,2]
[364740066,1749223852230,-440.0,0.00021643,2]
[364740067,1749223852241,-440.0,0.00021643,2]
[364740068,1749223852251,-440.0,0.00021643,2]
[364740069,1749223852260,-3215.6,0.00021643,2]
[364740070,1749223852270,-517.02,0.00021643,2]
[364740071,1749223852279,-440.0,0.00021643,2]
[364740072,1749223852289,-857.21,0.00021643,2]
[364740073,1749223852298,-729.35,0.00021643,2]
[364740074,1749223852308,-477.98,0.00021643,2]
[364740075,1749223852317,-440.0,0.00021643,2]
[364740076,1749223852327,-1912.42,0.00021643,2]
[364740077,1749223852337,-2359.7,0.00021643,2]
[364740078,1749223852347,-7142.79,0.00021643,2]
[364740079,1749223852356,-440.0,0.00021643,2]
[364740080,1749223852366,-3777.35,0.00021643,2]
[364740081,1749223852376,-1127.7,0.00021643,2]
[364740082,1749223852387,-440.0,0.00021643,2]
[364740083,1749223852397,-1196.38,0.00021643,2]
[364740084,1749223852406,-1802.88,0.00021643,2]
[364740085,1749223852416,-440.0,0.00021643,2]
[364740086,1749223852425,-440.0,0.00021643,2]
[364740087,1749223852435,-562.49,0.00021643,2]
[364740088,1749223852444,-831.48,0.00021643,2]
[364740089,1749223852453,-440.0,0.00021643,2]
[364740090,1749223852463,-440.0,0.00021643,2]
[364740091,1749223852473,-5296.18,0.00021643,2]
[364740092,1749223852483,-2045.12,0.00021643,2]
[364740093,1749223852493,-441.66,0.00021643,2]
[364740094,1749223852503,-440.0,0.00021643,2]
[364740095,1749223852513,-1764.13,0.00021643,2]
[364740096,1749223852522,-1492.68,0.00021643,2]
[364740097,1749223852531,-1126.0,0.00021643,2]
[364740098,1749223852541,-440.0,0.00021643,2]
[364740099,1749223852550,-440.0,0.00021643,2]
[364740100,1749223852560,-440.0,0.00021643,2]
[364740101,1749223852570,-440.0,0.00021643,2]
[364740102,1749223852583,-2306.82,0.00021643,2]
[364740103,1749223852593,-440.0,0.00021643,2]
[364740104,1749223852602,-440.0,0.00021643,2]
[364740105,1749223852612,-526.18812099,0.00021643,2]
[364740106,1749223852622,-685.82,0.00021643,2]
[364740107,1749223852632,-2874.28,0.00021643,2]
[364740108,1749223852641,-465.99,0.00021643,2]
[364740109,1749223852652,-3776.46,0.00021643,2]
[364740110,1749223852662,-440.0,0.00021643,2]
[364740111,1749223852672,-1767.71,0.00021643,2]
[364740112,1749223852681,-455.73,0.00021643,2]
[364740113,1749223852690,-2864.87,0.00021643,2]
[364740114,1749223852700,-1011.19,0.00021643,2]
[364740115,1749223852709,-2220.42,0.00021643,2]
[364740116,1749223852719,-440.0,0.00021643,2]
[364740117,1749223852729,-504.15916561,0.0002167,2]
[364740118,1749223852739,-500.0,0.0002167,2]
[364740119,1749223852749,-205.49080572,0.0002167,2]
[364740120,1749223852758,-500.0,0.0002167,2]
[364740121,1749223852767,-500.0,0.0002167,2]
[364740122,1749223852776,-500.0,0.0002167,2]
[364740123,1749223852786,-500.0,0.0002167,2]
[364740124,1749223852796,-500.0,0.0002167,2]
[364740125,1749223852805,-500.0,0.0002167,2]
[364740126,1749223852814,-500.0,0.0002167,2]
[364740127,1749223852824,-500.0,0.0002167,2]
[364740128,1749223852833,-500.0,0.0002167,2]
[364740129,1749223852843,-500.0,0.00021713,2]
[364740130,1749223852853,-500.0,0.00021713,2]
[364740131,1749223852862,-500.0,0.00021713,2]
[364740132,1749223852872,-600.0,0.00021713,2]
[364740133,1749223852881,-500.0,0.0002175,2]
[364740134,1749223852891,-800.0,0.0002178,2]
[364740135,1749223852900,-500.0,0.00021788,2]
[364740136,1749223852910,-500.0,0.00021788,2]
[364740137,1749223852919,-4642.42901656,0.00021797,6]
[364740138,1749223852929,-55660.61,0.000218,2]
[364740139,1749223852938,-151.0,0.000218,2]
[364740140,1749223852948,-5000.0,0.000218,2]
[364740141,1749223852958,-3274.52877712,0.00021806,2]
[364740142,1749223852967,-456.93,0.00021837,2]
[364740143,1749223852978,-1200.0,0.00021858,2]
[364740144,1749223852988,-503.39334109,0.00021867,2]
[364740145,1749223852997,-500.0,0.00021867,2]
[364740146,1749223853007,-500.0,0.00021867,2]
[364740147,1749223853017,-1907.16802553,0.00021869,2]
[364740148,1749223853027,-1083.65,0.000219,2]
[364740149,1749223853036,-1959.57,0.000219,2]
[364740150,1749223853046,-440.0,0.00021917,2]
[364740151,1749223853055,-440.0,0.00021917,2]
[364740152,1749223853064,-458.47,0.00021917,2]
[364740153,1749223853073,-494.03,0.00021917,2]
[364740154,1749223853083,-485.38,0.00021917,2]
[364740155,1749223853093,-440.0,0.00021917,2]
[364740156,1749223853103,-440.0,0.00021917,2]
[364740157,1749223853112,-440.0,0.00021917,2]
[364740158,1749223853122,-758.37,0.00021917,2]
[364740159,1749223853131,-747.21,0.00021917,2]
[364740160,1749223853140,-440.0,0.00021917,2]
[364740161,1749223853150,-440.0,0.00021917,2]
[364740162,1749223853161,-440.0,0.00021917,2]
[364740163,1749223853170,-440.0,0.00021917,2]
[364740164,1749223853179,-3215.6,0.00021917,2]
[364740165,1749223853189,-517.02,0.00021917,2]
[364740166,1749223853198,-440.0,0.00021917,2]
[364740167,1749223853208,-857.21,0.00021917,2]
[364740168,1749223853217,-729.35,0.00021917,2]
[364740169,1749223853228,-477.98,0.00021917,2]
[364740170,1749223853238,-440.0,0.00021917,2]
[364740171,1749223853248,-1912.42,0.00021917,2]
[364740172,1749223853257,-2359.7,0.00021917,2]
[364740173,1749223853267,-7142.79,0.00021917,2]
[364740174,1749223853276,-324.48293153,0.00021917,2]
[364740175,1749223853286,-3777.35,0.00021917,2]
[364740176,1749223853296,-1127.7,0.00021917,2]
[364740177,1749223853305,-440.0,0.00021917,2]
[364740178,1749223853314,-1196.38,0.00021917,2]
[364740179,1749223853324,-1802.88,0.00021917,2]
[364740180,1749223853333,-440.0,0.00021917,2]
[364740181,1749223853342,-440.0,0.00021917,2]
[364740182,1749223853352,-562.49,0.00021917,2]
[364740183,1749223853361,-831.48,0.00021917,2]
[364740184,1749223853370,-440.0,0.00021917,2]
[364740185,1749223853380,-440.0,0.00021917,2]
[364740186,1749223853389,-5296.18,0.00021917,2]
[364740187,1749223853398,-2045.12,0.00021917,2]
[364740188,1749223853408,-441.66,0.00021917,2]
[364740189,1749223853418,-440.0,0.00021917,2]
[364740190,1749223853427,-1764.13,0.00021917,2]
[364740191,1749223853437,-1126.0,0.00021917,2]
[364740192,1749223853446,-1492.68,0.00021917,2]
[364740193,1749223853456,-440.0,0.00021917,2]
[364740194,1749223853465,-440.0,0.00021917,2]
[364740195,1749223853475,-440.0,0.00021917,2]
[364740196,1749223853485,-330.0,0.00021917,2]
[364740197,1749223853494,-2306.82,0.00021917,2]
[364740198,1749223853504,-440.0,0.00021917,2]
[364740199,1749223853513,-440.0,0.00021917,2]
[364740200,1749223853522,-685.82,0.00021917,2]
[364740201,1749223853532,-2874.28,0.00021917,2]
[364740202,1749223853543,-465.99,0.00021917,2]
[364740203,1749223853552,-3776.46,0.00021917,2]
[364740204,1749223853561,-440.0,0.00021917,2]
[364740205,1749223853571,-1767.71,0.00021917,2]
[364740206,1749223853584,-455.73,0.00021917,2]
[364740207,1749223853593,-2864.87,0.00021917,2]
[364740208,1749223853602,-1011.19,0.00021917,2]
[364740209,1749223853612,-2220.42,0.00021917,2]
[364740210,1749223853622,-440.0,0.00021917,2]
[364740211,1749223853631,-4642.42901656,0.00021969,6]
[364740212,1749223853641,-112398.92506955,0.00021969,2]
[364740213,1749223853652,-14201.10572743,0.00021969,2]
[364740214,1749223853666,-501.61992717,0.00021973,2]
[364740215,1749223853675,-500.0,0.00021973,2]
[364740216,1749223853685,-500.0,0.00021973,2]
[364740217,1749223853776,-500.0,0.00021973,2]
[364740218,1749223853786,-500.0,0.00021973,2]
[364740219,1749223853795,-500.0,0.00021973,2]
[364740220,1749223853805,-500.0,0.00021973,2]
[364740221,1749223853814,-500.0,0.00021973,2]
[364740222,1749223853823,-500.0,0.00021973,2]
[364740223,1749223853833,-500.0,0.00021973,2]
[364740224,1749223853843,-500.0,0.00021973,2]
[364740225,1749223853853,-500.0,0.00021973,2]
[364740226,1749223853864,-6178.17256535,0.00022,7]
[364740227,1749223854000,-10823.11081863,0.00022,7]
[364740228,1749223854020,-3185.16375651,0.00019726,2]
[364740229,1749223854778,-459.05,0.00019158,3]
[364740230,1749223854788,-500.0,0.00019167,2]
[364740231,1749223854797,-287.34577963,0.00019167,2]
[364740232,1749223854807,-500.0,0.00019167,2]
[364740233,1749223854816,-500.0,0.00019167,2]
[364740234,1749223854825,-250.83302763,0.00019167,2]
[364740235,1749223854834,-500.0,0.00019167,2]
[364740236,1749223854844,-500.0,0.00019167,2]
[364740237,1749223854853,-1364.41715748,0.00019167,2]
[364740238,1749223854862,-500.0,0.00019167,2]
[364740239,1749223854871,-500.0,0.00019167,2]
[364740240,1749223854881,-219.96618265,0.00019167,2]
[364740241,1749223854890,-500.0,0.00019167,2]
[364740242,1749223854899,-1364.41715748,0.00019167,2]
[364740243,1749223854908,-500.0,0.00019167,2]
[364740244,1749223854917,-500.0,0.00019167,2]
[364740245,1749223854926,-500.0,0.00019167,2]
[364740246,1749223854936,-400.55371975,0.00019167,2]
[364740247,1749223854946,-1364.41715748,0.00019167,2]
[364740248,1749223854956,-500.0,0.00019167,2]
[364740249,1749223854965,-500.0,0.00019167,2]
[364740250,1749223854975,-500.0,0.00019167,2]
[364740251,1749223854985,-1364.41715748,0.00019167,2]
[364740252,1749223854994,-500.0,0.00019167,2]
[364740253,1749223855003,-500.0,0.00019167,2]
[364740254,1749223855013,-500.0,0.00019167,2]
[364740255,1749223855022,-1364.41715748,0.00019167,2]
[364740256,1749223855032,-500.0,0.00019167,2]
[364740257,1749223855041,-500.0,0.00019167,2]
[364740258,1749223855050,-1364.41715748,0.00019167,2]
[364740259,1749223855060,-500.0,0.00019167,2]
[364740260,1749223855069,-648.63448091,0.00019167,2]
[364740261,1749223855079,-500.0,0.00019167,2]
[364740262,1749223855092,-1364.41715748,0.00019167,2]
[364740263,1749223855103,-500.0,0.00019167,2]
[364740264,1749223855114,-1364.41715748,0.00019167,2]
[364740265,1749223855123,-188.82487601,0.00019167,2]
[364740266,1749223855133,-1364.41715748,0.00019167,2]
[364740267,1749223855142,-500.0,0.00019167,2]
[364740268,1749223855152,-500.0,0.00019167,2]
[364740269,1749223855163,-500.0,0.00019167,2]
[364740270,1749223855173,-1364.41715748,0.00019167,2]
[364740271,1749223855182,-1364.41715748,0.00019167,2]
[364740272,1749223855191,-1364.41715748,0.00019167,2]
[364740273,1749223855201,-1364.41715748,0.00019167,2]
[364740274,1749223855211,-1364.41715748,0.00019167,2]
[364740275,1749223855220,-1364.41715748,0.00019167,2]
[364740276,1749223855231,-1364.41715748,0.00019167,2]
[364740277,1749223855240,-1364.41715748,0.00019167,2]
[364740278,1749223855251,-1364.41715748,0.00019167,2]
[364740279,1749223855347,-1364.41715748,0.00019167,2]
[364740280,1749223855369,-1364.41715748,0.00019167,2]
[364740281,1749223855383,-1364.41715748,0.00019167,2]
[364740282,1749223855394,-1364.41715748,0.00019167,2]
[364740283,1749223855406,-1364.41715748,0.00019167,2]
[364740284,1749223855416,-1364.41715748,0.00019167,2]
[364740285,1749223855426,-1364.41715748,0.00019167,2]
[364740286,1749223855436,-1364.41715748,0.00019167,2]
[364740287,1749223855447,-1364.41715748,0.00019167,2]
[364740288,1749223855457,-430.0,0.00019178,2]
[364740289,1749223855467,-440.0,0.00019178,2]
[364740290,1749223855478,-453.20732303,0.00019178,2]
[364740291,1749223855489,-440.0,0.00019178,2]
[364740292,1749223855499,-440.0,0.00019178,2]
[364740293,1749223855510,-440.0,0.00019452,2]
[364740294,1749223855521,-440.0,0.00019452,2]
[364740295,1749223855531,-440.0,0.00019452,2]
[364740296,1749223855542,-2402.30624349,0.00019726,2]
[364740297,1749223855552,-440.0,0.00019726,2]
[364740298,1749223855563,-440.0,0.00019726,2]
[364740299,1749223855575,-440.0,0.00019726,2]
[364740300,1749223855592,-5587.47,0.0002,2]
[364740301,1749223855603,-440.0,0.0002,2]
[364740302,1749223855613,-400.0,0.0002,2]
[364740303,1749223855625,-440.0,0.0002,2]
[364740304,1749223855635,-842.5625,0.00020226,2]
[364740305,1749223855646,-440.0,0.00020273,2]
[364740306,1749223855658,-5587.47,0.00020273,2]
[364740307,1749223855669,-440.0,0.00020273,2]
[364740308,1749223855679,-440.0,0.00020273,2]
[364740309,1749223855689,-440.0,0.00020547,2]
[364740310,1749223855699,-5587.47,0.00020547,2]
[364740311,1749223855710,-440.0,0.00020547,2]
[364740312,1749223855720,-440.0,0.00020547,2]
[364740313,1749223855731,-440.0,0.00020821,2]
[364740314,1749223855741,-5587.47,0.00020821,2]
[364740315,1749223855752,-440.0,0.00021095,2]
[364740316,1749223855762,-5587.47,0.00021095,2]
[364740317,1749223855772,-440.0,0.00021369,2]
[364740318,1749223855782,-5587.47,0.00021369,2]
[364740319,1749223855793,-440.0,0.00021643,2]
[364740320,1749223855803,-5587.47,0.00021643,2]
[364740321,1749223855813,-440.0,0.00021917,2]
[364740322,1749223855823,-5587.47,0.00021917,2]
[364740323,1749223855833,-114028.00661602,0.00022,7]
[364740324,1749223855844,-11849.89752062,0.00022,7]
[364740325,1749223855854,-10215.21132965,0.00022,2]
[364740326,1749223855864,-5364.40417707,0.00022,2]
[364740327,1749223855874,-1000.0,0.00022015,2]
[364740328,1749223855883,-4642.42901656,0.00022141,6]
[364740329,1749223855892,-1907.16802547,0.0002216,2]
[364740330,1749223855903,-440.0,0.00022191,2]
[364740331,1749223855914,-440.0,0.00022191,2]
[364740332,1749223855923,-458.47,0.00022191,2]
[364740333,1749223855933,-494.03,0.00022191,2]
[364740334,1749223855943,-485.38,0.00022191,2]
[364740335,1749223855953,-440.0,0.00022191,2]
[364740336,1749223855962,-440.0,0.00022191,2]
[364740337,1749223855972,-330.0,0.00022191,2]
[364740338,1749223855983,-758.37,0.00022191,2]
[364740339,1749223855992,-747.21,0.00022191,2]
[364740340,1749223856002,-440.0,0.00022191,2]
[364740341,1749223856011,-440.0,0.00022191,2]
[364740342,1749223856021,-440.0,0.00022191,2]
[364740343,1749223856031,-440.0,0.00022191,2]
[364740344,1749223856041,-3215.6,0.00022191,2]
[364740345,1749223856052,-517.02,0.00022191,2]
[364740346,1749223856061,-440.0,0.00022191,2]
[364740347,1749223856071,-857.21,0.00022191,2]
[364740348,1749223856081,-477.98,0.00022191,2]
[364740349,1749223856091,-1912.42,0.00022191,2]
[364740350,1749223856101,-2359.7,0.00022191,2]
[364740351,1749223856111,-7142.79,0.00022191,2]
[364740352,1749223856122,-3777.35,0.00022191,2]
[364740353,1749223856131,-1127.7,0.00022191,2]
[364740354,1749223856141,-440.0,0.00022191,2]
[364740355,1749223856151,-1196.38,0.00022191,2]
[364740356,1749223856161,-1802.88,0.00022191,2]
[364740357,1749223856171,-440.0,0.00022191,2]
[364740358,1749223856180,-440.0,0.00022191,2]
[364740359,1749223856190,-562.49,0.00022191,2]
[364740360,1749223856200,-831.48,0.00022191,2]
[364740361,1749223856210,-440.0,0.00022191,2]
[364740362,1749223856219,-440.0,0.00022191,2]
[364740363,1749223856230,-5296.18,0.00022191,2]
[364740364,1749223856240,-2045.12,0.00022191,2]
[364740365,1749223856250,-441.66,0.00022191,2]
[364740366,1749223856260,-1764.13,0.00022191,2]
[364740367,1749223856270,-440.0,0.00022191,2]
[364740368,1749223856280,-1492.68,0.00022191,2]
[364740369,1749223856289,-1126.0,0.00022191,2]
[364740370,1749223856299,-440.0,0.00022191,2]
[364740371,1749223856309,-440.0,0.00022191,2]
[364740372,1749223856318,-440.0,0.00022191,2]
[364740373,1749223856328,-2306.82,0.00022191,2]
[364740374,1749223856338,-440.0,0.00022191,2]
[364740375,1749223856348,-440.0,0.00022191,2]
[364740376,1749223856358,-685.82,0.00022191,2]
[364740377,1749223856368,-2874.28,0.00022191,2]
[364740378,1749223856378,-465.99,0.00022191,2]
[364740379,1749223856388,-3776.46,0.00022191,2]
[364740380,1749223856399,-440.0,0.00022191,2]
[364740381,1749223856408,-1767.71,0.00022191,2]
[364740382,1749223856419,-455.73,0.00022191,2]
[364740383,1749223856429,-2864.87,0.00022191,2]
[364740384,1749223856438,-1011.19,0.00022191,2]
[364740385,1749223856448,-2220.42,0.00022191,2]
[364740386,1749223856462,-440.0,0.00022191,2]
[364740387,1749223856473,-440.0,0.00022191,2]
[364740388,1749223856483,-5587.47,0.00022191,2]
[364740389,1749223856494,-1000.0,0.00022218,2]
[364740390,1749223856504,-500.0,0.00022218,2]
[364740391,1749223856515,-1000.0,0.00022218,2]
[364740392,1749223856526,-1070.48775051,0.00022218,2]
[364740393,1749223856536,-1000.0,0.00022218,2]
[364740394,1749223856546,-1000.0,0.00022218,2]
[364740395,1749223856556,-1000.0,0.00022218,2]
[364740396,1749223856566,-1039.3844766,0.00022218,2]
[364740397,1749223856582,-500.0,0.00022218,2]
[364740398,1749223856592,-1000.0,0.00022218,2]
[364740399,1749223856603,-1000.0,0.00022261,2]
[364740400,1749223856613,-1000.0,0.00022261,2]
[364740401,1749223856624,-1200.0,0.00022261,2]
[364740402,1749223856635,-1000.0,0.00022298,2]
[364740403,1749223856645,-4642.42901656,0.00022314,7]
[364740404,1749223856655,-500.0,0.00022336,2]
[364740405,1749223856665,-500.0,0.00022336,2]
[364740406,1749223856676,-231.72382858,0.00022348,2]
[364740407,1749223856686,-5000.0,0.00022348,2]
[364740408,1749223856695,-500.0,0.00022415,2]
[364740409,1749223856706,-1907.16802547,0.00022451,2]
[364740410,1749223856716,-440.0,0.00022465,2]
[364740411,1749223856725,-440.0,0.00022465,2]
[364740412,1749223856736,-458.47,0.00022465,2]
[364740413,1749223856745,-494.03,0.00022465,2]
[364740414,1749223856755,-485.38,0.00022465,2]
[364740415,1749223856764,-440.0,0.00022465,2]
[364740416,1749223856775,-440.0,0.00022465,2]
[364740417,1749223856785,-758.37,0.00022465,2]
[364740418,1749223856795,-747.21,0.00022465,2]
[364740419,1749223856804,-440.0,0.00022465,2]
[364740420,1749223856814,-153.35214421,0.00022465,2]
[364740421,1749223856824,-440.0,0.00022465,2]
[364740422,1749223856833,-440.0,0.00022465,2]
[364740423,1749223856843,-3215.6,0.00022465,2]
[364740424,1749223856853,-517.02,0.00022465,2]
[364740425,1749223856863,-440.0,0.00022465,2]
[364740426,1749223856873,-857.21,0.00022465,2]
[364740427,1749223856882,-477.98,0.00022465,2]
[364740428,1749223856893,-1912.42,0.00022465,2]
[364740429,1749223856903,-2359.7,0.00022465,2]
[364740430,1749223856912,-7142.79,0.00022465,2]
[364740431,1749223856924,-3777.35,0.00022465,2]
[364740432,1749223856935,-1127.7,0.00022465,2]
[364740433,1749223856946,-212.07185193,0.00022465,2]
[364740434,1749223856958,-1196.38,0.00022465,2]
[364740435,1749223856968,-1802.88,0.00022465,2]
[364740436,1749223856979,-440.0,0.00022465,2]
[364740437,1749223856989,-440.0,0.00022465,2]
[364740438,1749223856999,-562.49,0.00022465,2]
[364740439,1749223857008,-831.48,0.00022465,2]
[364740440,1749223857018,-352.0,0.00022465,2]
[364740441,1749223857134,-440.0,0.00022465,2]
[364740442,1749223857143,-5296.18,0.00022465,2]
[364740443,1749223857153,-2045.12,0.00022465,2]
[364740444,1749223857163,-441.66,0.00022465,2]
[364740445,1749223857174,-1764.13,0.00022465,2]
[364740446,1749223857184,-440.0,0.00022465,2]
[364740447,1749223857194,-1492.68,0.00022465,2]
[364740448,1749223857203,-1126.0,0.00022465,2]
[364740449,1749223857213,-440.0,0.00022465,2]
[364740450,1749223857222,-340.0,0.00022465,2]
[364740451,1749223857234,-440.0,0.00022465,2]
[364740452,1749223857243,-2306.82,0.00022465,2]
[364740453,1749223857253,-440.0,0.00022465,2]
[364740454,1749223857263,-440.0,0.00022465,2]
[364740455,1749223857272,-685.82,0.00022465,2]
[364740456,1749223857282,-2874.28,0.00022465,2]
[364740457,1749223857292,-465.99,0.00022465,2]
[364740458,1749223857302,-3776.46,0.00022465,2]
[364740459,1749223857313,-440.0,0.00022465,2]
[364740460,1749223857322,-1767.71,0.00022465,2]
[364740461,1749223857333,-455.73,0.00022465,2]
[364740462,1749223857343,-2864.87,0.00022465,2]
[364740463,1749223857353,-1011.19,0.00022465,2]
[364740464,1749223857364,-2220.42,0.00022465,2]
[364740465,1749223857373,-440.0,0.00022465,2]
[364740466,1749223857383,-440.0,0.00022465,2]
[364740467,1749223857393,-5587.47,0.00022465,2]
[364740468,1749223857403,-4642.42901656,0.00022486,7]
[364740469,1749223857413,-354.76498278,0.000225,2]
[364740470,1749223857423,-152.64334674,0.00022521,2]
[364740471,1749223857433,-1000.0,0.00022521,2]
[364740472,1749223857442,-1000.0,0.00022521,2]
[364740473,1749223857452,-471.51102347,0.00022521,2]
[364740474,1749223857461,-1000.0,0.00022521,2]
[364740475,1749223857471,-1000.40857291,0.00022521,2]
[364740476,1749223857482,-1000.0,0.00022521,2]
[364740477,1749223857492,-1000.0,0.00022521,2]
[364740478,1749223857502,-1000.0,0.00022521,2]
[364740479,1749223857513,-1000.0,0.00022521,2]
[364740480,1749223857523,-17343.48643135,0.000226,7]
[364740481,1749223857533,-215.0738,0.00022621,2]
[364740482,1749223857545,-3274.52877712,0.00022624,2]
[364740483,1749223857555,-522.2,0.00022646,2]
[364740484,1749223857565,-4642.42901656,0.00022659,7]
[364740485,1749223857577,-62112.2580084,0.000227,2]
[364740486,1749223857587,-440.0,0.00022739,2]
[364740487,1749223857598,-440.0,0.00022739,2]
[364740488,1749223857608,-458.47,0.00022739,2]
[364740489,1749223857619,-494.03,0.00022739,2]
[364740490,1749223857630,-485.38,0.00022739,2]
[364740491,1749223857640,-440.0,0.00022739,2]
[364740492,1749223857650,-171.63523448,0.00022739,2]
[364740493,1749223857663,-758.37,0.00022739,2]
[364740494,1749223857672,-747.21,0.00022739,2]
[364740495,1749223857682,-440.0,0.00022739,2]
[364740496,1749223857693,-440.0,0.00022739,2]
[364740497,1749223857703,-440.0,0.00022739,2]
[364740498,1749223857712,-3215.6,0.00022739,2]
[364740499,1749223857722,-517.02,0.00022739,2]
[364740500,1749223857732,-440.0,0.00022739,2]
[364740501,1749223857742,-857.21,0.00022739,2]
[364740502,1749223857752,-477.98,0.00022739,2]
[364740503,1749223857763,-1912.42,0.00022739,2]
[364740504,1749223857773,-2359.7,0.00022739,2]
[364740505,1749223857783,-7142.79,0.00022739,2]
[364740506,1749223857792,-3777.35,0.00022739,2]
[364740507,1749223857802,-1127.7,0.00022739,2]
[364740508,1749223857822,-1196.38,0.00022739,2]
[364740509,1749223857832,-1802.88,0.00022739,2]
[364740510,1749223857842,-440.0,0.00022739,2]